Cogmind - Beta 13 @@@ ROGUE MODE // 2024.04.17 @ 13:50:05 Player: monistgf Result: Self-destructed Performance ------------- Evolutions (7) 3500 Regions Visited (17) 3400 Robots Destroyed (159) 795 Value Destroyed (5550) 5550 Prototype IDs (5) 100 Alien Tech Used (0) 0 Bonus (2915) 2915 TOTAL SCORE: 16260 Bonus ------- High Alert Combat Kills 696 Follower Combat Kills 1919 Built Enhanced Grunts 300 Cogmind --------- Core Integrity 702/1300 Matter 300/300 Energy 100/100 System Corruption 4% Temperature Cool (0) Movement Rolling (115) Ox1 Location -3/Research Parts ------- > --- POWER (3) -------- (None) > --- PROPULSION (8) --- Compact Wheel Improved Gyrokinetic Inverter > --- UTILITY (7) ------ Large Storage Unit Enhanced Optical Array Improved Melee Analysis Suite Advanced Melee Analysis Suite > --- WEAPON (3) ------- Lance Lance Lance > --- INVENTORY (15) --- Antigrav System Advanced Cooling System Gravity Neutralizer Advanced Melee Analysis Suite Advanced Transmission Jammer Advanced Cloaking Device Linear Accelerator Micro-nuke Launcher Phasing Sabre Phasing Sabre Lance Peak State ------------ > --- POWER ------------ Antimatter Reactor Particle Reactor Particle Reactor > --- PROPULSION ------- Gravmag System Gravmag System Antigrav System Antigrav System Antigrav System Improved Gyrokinetic Inverter Improved Gyrokinetic Inverter Combat Antigrav System > --- UTILITY ---------- Advanced Cooling System Large Storage Unit Enhanced Optical Array Seismic Detector Improved Melee Analysis Suite Advanced Cloaking Device Centrium Medium Armor Plating > --- WEAPON ----------- Phasing Sabre Lance Lance > --- INVENTORY -------- Advanced Cooling System Gravity Neutralizer Advanced Melee Analysis Suite Advanced Transmission Jammer Experimental Phase Shifter Centrium Medium Armor Plating Linear Accelerator Micro-nuke Launcher Phasing Sabre Phasing Sabre Lance Lance Lance [Rating: 132] Favorites ----------- Power Neutrino Core Engine Improved Deuterium Engine Power Core Neutrino Core Reactor Antimatter Reactor Propulsion Combat Airjet Treads Light Treads Leg Aluminum Leg Wheel Armored Huge Wheel Hover Unit Combat Airjet Utility Large Storage Unit Device Seismic Detector Storage Large Storage Unit Processor Enhanced Optical Array Hackware System Shield Protection Improved Medium Armor Plating Weapon Chainsword Ballistic Gun Light Assault Rifle Ballistic Cannon Linear Accelerator Launcher Heavy Missile Launcher Slashing Weapon Chainsword Piercing Weapon Lance Build | -11 -10 -9 -9 -8 -7 -6 -5 -5 -5 -4 -4 -4 -4 -4 -4 -4 -3 ------- Run | Yrd Mat Mat Min Mat Fac Fac Fac Was Fac Fac Was Fac Ext Cet Arc Hub Res Slots Evolved 14 | . . 2 . 2 2 2 2 . . 2 . . . . . . 2 Power 2 | . . . . . . . 1 . . . . . . . . . 1 Propulsion 6 | . . 1 . 2 . . 1 . . 1 . . . . . . 1 Utility 5 | . . . . . 2 2 . . . 1 . . . . . . . Weapon 1 | . . 1 . . . . . . . . . . . . . . . Parts Attached 245 | . 2 27 10 23 36 13 16 2 31 5 2 4 21 12 10 6 25 Power 30 | . . 3 . 3 2 . 3 . 4 . 1 . 7 1 . 1 5 Engine 9 | . . 3 . 3 2 . . . . . . . . . . . 1 Core 9 | . . . . . . . 3 . 4 . 1 . 1 . . . . Reactor 12 | . . . . . . . . . . . . . 6 1 . 1 4 Propulsion 77 | . . 12 6 6 7 5 7 1 6 3 . 1 2 7 4 4 6 Treads 1 | . . 1 . . . . . . . . . . . . . . . Leg 22 | . . 5 6 6 1 . . . . . . . . 4 . . . Wheel 21 | . . 6 . . 6 5 1 . . . . . . . . . 3 Hover 33 | . . . . . . . 6 1 6 3 . 1 2 3 4 4 3 Flight . | . . . . . . . . . . . . . . . . . . Utility 65 | . 1 1 1 3 11 8 3 . 10 2 1 3 6 3 4 1 7 Device 40 | . 1 . 1 2 6 1 1 . 7 2 1 3 5 1 4 1 4 Storage 1 | . . . . 1 . . . . . . . . . . . . . Processor 5 | . . . . . 1 2 . . 1 . . . . . . . 1 Hackware 1 | . . . . . . 1 . . . . . . . . . . . Protection 18 | . . 1 . . 4 4 2 . 2 . . . 1 2 . . 2 Artifact . | . . . . . . . . . . . . . . . . . . Weapon 73 | . 1 11 3 11 16 . 3 1 11 . . . 6 1 2 . 7 Energy Gun . | . . . . . . . . . . . . . . . . . . Energy Cannon . | . . . . . . . . . . . . . . . . . . Ballistic Gun 31 | . 1 10 3 8 9 . . . . . . . . . . . . Ballistic Cannon 2 | . . . . . . . . . . . . . . . . . 2 Launcher 10 | . . 1 . 3 2 . 2 . 2 . . . . . . . . Special Weapon . | . . . . . . . . . . . . . . . . . . Impact Weapon . | . . . . . . . . . . . . . . . . . . Slashing Weapon 22 | . . . . . 5 . 1 1 6 . . . 6 1 . . 2 Piercing Weapon 8 | . . . . . . . . . 3 . . . . . 2 . 3 Special Melee Weapon . | . . . . . . . . . . . . . . . . . . Unidentified Prototypes 4 | . . . . . . . . . 2 . . 1 . 1 . . . Parts Lost 69 | . . 10 1 9 9 . . . 4 . 1 . 4 8 . 3 20 Power 11 | . . 2 . 1 . . . . . . 1 . . 1 . 1 5 Propulsion 31 | . . 6 1 5 3 . . . . . . . 2 4 . 1 9 Utility 19 | . . . . 2 3 . . . 4 . . . 2 3 . 1 4 Weapon 8 | . . 2 . 1 3 . . . . . . . . . . . 2 Highest Loss Streak 18 | . . 5 1 7 5 . . . 2 . 1 . 2 8 . 3 18 To Critical Strikes 1 | . . . . . 1 . . . . . . . . . . . . Average Slot Usage (%) 93 | . 99 93 100 80 83 84 94 100 98 100 98 99 99 92 96 99 85 Engine 3 | . 14 9 11 8 7 6 . . . . . . . . . . 2 Core 3 | . . . . . . . 9 11 11 10 10 10 1 . . . . Reactor 2 | . . . . . . . . . . . . . 8 10 10 10 8 Leg 7 | . 28 14 33 30 8 . . . . . . . . 14 10 . . Wheel 4 | . . 11 . . 16 20 8 . . . . . . . . . . Hover 18 | . . . . . . . 21 35 35 36 36 36 36 19 25 35 28 Device 13 | . 13 7 10 5 13 12 16 17 12 15 15 20 19 7 8 15 12 Storage 6 | . 14 11 11 9 7 6 5 5 5 5 5 5 5 5 5 5 4 Processor 5 | . . . . . 1 3 5 5 8 10 10 10 10 10 10 10 9 Protection 3 | . . 3 . . 4 13 5 5 4 5 4 . . 8 8 5 3 Ballistic Gun 8 | . 28 32 33 26 17 . . . . . . . . . . . . Slashing Weapon 7 | . . . . . 3 20 16 17 13 . . . 13 15 13 5 3 Piercing Weapon 3 | . . . . . . . . . 3 15 15 15 1 . 1 10 9 Naked Turns . | . . . . . . . . . . . . . . . . . . Heaviest Build 93 | 11 12 20 20 39 56 60 75 67 68 71 71 66 75 82 80 74 93 Greatest Support 92 | 20 20 44 33 50 72 72 88 71 71 81 81 81 81 80 82 85 92 Greatest Overweight (x) 2 | . . 1 . 1 2 . 1 . . . . . . 1 1 . 2 Average Overweight (x) . | . . . . . . . . . . . . . . . . . . Largest Inventory Capacity 15 | . 8 8 8 15 15 15 15 15 15 15 15 15 15 15 15 15 15 Average Capacity 13 | . 8 8 8 8 15 15 15 15 15 15 15 15 15 15 15 15 15 Most Carried 15 | . 8 8 8 8 15 15 15 15 15 15 15 15 15 15 15 15 15 Average Carried 12 | . 6 6 7 7 13 14 14 14 14 14 14 14 14 14 14 14 13 Final Capacity 15 | 8 8 8 8 15 15 15 15 15 15 15 15 15 15 15 15 15 15 Final Carried 15 | 6 7 8 8 8 14 15 15 14 15 15 14 15 15 15 15 13 11 Class Distribution -------------------- 38% | Gladiator 14% | Scavenger-Gladiator 13% | Commander-Gladiator 9% | Scavenger-Gunner 6% | Scavenger-Skirmisher 4% | Skirmisher 4% | Mutant 3% | Scavenger-Tank Dominant Class ---------------- Mutant | -10/Materials Skirmisher | -9/Materials Scavenger-Gunner | -9/Mines Scavenger-Skirmisher | -8/Materials Scavenger-Skirmisher | -7/Factory Gladiator | -6/Factory Gladiator | -5/Factory Gladiator | -5/Waste Gladiator | -5/Factory Gladiator | -4/Factory Gladiator | -4/Waste Gladiator | -4/Factory Commander-Gladiator | -4/Extension Scavenger-Gladiator | -4/Cetus Scavenger-Gladiator | -4/Archives Scavenger-Gladiator | -4/Hub_04(d) Scavenger-Gladiator | -3/Research Resources | -11 -10 -9 -9 -8 -7 -6 -5 -5 -5 -4 -4 -4 -4 -4 -4 -4 -3 ----------- Run | Yrd Mat Mat Min Mat Fac Fac Fac Was Fac Fac Was Fac Ext Cet Arc Hub Res Matter Collected 4193 | 200 46 683 288 168 752 220 216 . 664 . . 48 395 116 127 55 215 Remotely . | . . . . . . . . . . . . . . . . . . Salvage Created 5903 | . 46 818 379 418 786 212 266 . 607 . . 48 1026 200 267 314 516 Parts 340 | . 6 62 31 31 39 14 13 . 32 . . 3 40 5 28 13 23 Haulers Intercepted 1 | . . . . . . . . . 1 . . . . . . . . Recyclers Shooed 2 | . . . . 1 1 . . . . . . . . . . . . Parts Field Recycled . | . . . . . . . . . . . . . . . . . . Retrieved Matter . | . . . . . . . . . . . . . . . . . . Parts Self-Destructed . | . . . . . . . . . . . . . . . . . . Prevented . | . . . . . . . . . . . . . . . . . . Kills | -11 -10 -9 -9 -8 -7 -6 -5 -5 -5 -4 -4 -4 -4 -4 -4 -4 -3 ------- Run | Yrd Mat Mat Min Mat Fac Fac Fac Was Fac Fac Was Fac Ext Cet Arc Hub Res Combat Hostiles Destroyed 111 | . 3 23 14 12 18 2 4 . 11 . . . 14 3 . 3 4 Melee 37 | . . . . . 2 2 4 . 5 . . . 14 3 . 3 4 Guns 54 | . 3 20 14 5 12 . . . . . . . . . . . . AOE 20 | . . 3 . 7 4 . . . 6 . . . . . . . . Classes Destroyed 17 | . 1 7 1 1 2 . . . 2 . . . 2 . . 1 . Worker 11 | . . 2 1 2 2 3 . . . . . . . . . . 1 Builder 8 | . . . . 2 2 . . . 4 . . . . . . . . Tunneler 4 | . . 1 . . 1 . 1 . . . . . . . . . 1 Hauler 1 | . . . . . . . . . 1 . . . . . . . . Recycler 4 | . . . . . 2 . . . . . . . 1 . . . 1 Operator 13 | . . 1 . . . . . . 1 . . . 1 . 8 1 1 Watcher 7 | . . 1 . 2 . . . . 1 . . 1 . . . 2 . Swarmer 43 | . 3 10 9 4 11 . . . 3 . . . 3 . . . . Grunt 32 | . . 8 3 6 2 . 1 . 4 . . . 6 . . . 2 Brawler 2 | . . 1 . . 1 . . . . . . . . . . . . Duelist 3 | . . . 2 . . . . . . . . . . . . . 1 Sentry 15 | . . 4 . 2 1 2 1 . 1 . . . 2 . . 1 1 Demolisher 1 | . . . . . . . . . . . . . 1 . . . . Specialist 1 | . . . . . . . . . . . . . . . . 1 . Hunter 3 | . . . . . . . . . 1 . . . 1 . . 1 . Programmer 7 | . . . . . 3 . 2 . 2 . . . . . . . . Behemoth 1 | . . . . . . . . . . . . . 1 . . . . Cetus Guard 3 | . . . . . . . . . . . . . . 3 . . . Best Kill Streak 16 | . 2 4 4 16 12 1 2 . 10 . . 1 3 2 7 2 3 Combat Bots Only 7 | . 2 4 3 5 7 1 2 . 6 . . . 3 2 . 1 2 Max Kills in Single Turn 5 | . 1 2 2 4 5 1 1 . 5 . . 1 1 1 1 1 1 Gunslinging . | . . . . . . . . . . . . . . . . . . Exploded 3 | . . 2 . 3 2 . . . 2 . . . . . . . . Melee 1 | . . . . . 1 1 1 . 1 . . . 1 1 . 1 1 Uniques/NPCs Destroyed 1 | . . . . . . . . . . . . . . 1 . . . A7 (-4/Cetus) Combat | -11 -10 -9 -9 -8 -7 -6 -5 -5 -5 -4 -4 -4 -4 -4 -4 -4 -3 -------- Run | Yrd Mat Mat Min Mat Fac Fac Fac Was Fac Fac Was Fac Ext Cet Arc Hub Res Hostile Shots Fired 896 | . 30 117 47 61 137 36 34 . 95 . 1 . 62 52 6 53 165 Missed 258 | . 2 23 11 17 31 18 9 . 32 . . . 26 12 4 22 51 Damage Taken 11759 | . 232 1137 531 874 1733 150 526 . 1191 . 59 . 1019 1152 102 409 2644 Core 1855 | . 49 122 146 86 152 10 65 . 123 . 59 . 259 140 23 23 598 Absorbed by Shields 180 | . . . . . 33 . . . . . . . 147 . . . . Regen/Repaired (Parts) 62 | . . . . . . . . . . . . . . . . . 62 Core Remaining (%) 76 | 100 80 . 33 84 78 98 . . 81 . . . . . . 56 . Volleys Fired 202 | . 18 68 32 22 48 . 4 . 5 . . . . . . . 5 Largest 3 | . 2 3 3 3 3 . 1 . 1 . . . . . . . 1 Hottest 78 | . 40 63 60 66 78 . 49 . 49 . . . . . . . 66 Shots Fired 527 | . 36 195 94 48 141 . 4 . 4 . . . . . . . 5 Gun 499 | . 36 193 94 39 137 . . . . . . . . . . . . Cannon 5 | . . . . . . . . . . . . . . . . . 5 Launcher 23 | . . 2 . 9 4 . 4 . 4 . . . . . . . . Special . | . . . . . . . . . . . . . . . . . . Kinetic 504 | . 36 193 94 39 137 . . . . . . . . . . . 5 Thermal . | . . . . . . . . . . . . . . . . . . Explosive 23 | . . 2 . 9 4 . 4 . 4 . . . . . . . . Electromagnetic . | . . . . . . . . . . . . . . . . . . Robot Hit Streak 11 | . 3 11 10 9 7 . . . 3 . . . . . . . . Robot Miss Streak 6 | . 5 4 2 3 6 . . . . . . . . . . . . Penetration Max . | . . . . . . . . . . . . . . . . . . Secondary Targets 11 | . . 4 5 . 2 . . . . . . . . . . . . Max Gunslinging Chain 1 | . . 1 1 . 1 . . . . . . . . . . . . Shots Hit Robots 537 | . 17 122 60 30 88 9 16 . 25 . . 1 72 23 12 18 44 Core Hits 260 | . 3 51 27 39 48 4 6 . 24 . . 1 22 6 4 10 15 Critical Kills 1 | . . . 1 . . . . . . . . . . . . . . Critical Parts Destroyed 1 | . . . . . 1 . . . . . . . . . . . . Critical Strikes 32 | . . . 1 . 1 1 2 . 6 . . . 13 2 1 2 3 Destroy 2 | . . . 1 . 1 . . . . . . . . . . . . Sever 23 | . . . . . . 1 2 . 6 . . . 11 2 . . 1 Impale 7 | . . . . . . . . . . . . . 2 . 1 2 2 Melee Attacks 373 | . . . . . 13 13 32 . 61 2 . 5 98 25 15 28 81 Impact . | . . . . . . . . . . . . . . . . . . Slashing 237 | . . . . . 13 13 32 . 48 . . . 80 25 11 2 13 Piercing 136 | . . . . . . . . . 13 2 . 5 18 . 4 26 68 Sneak Attacks 31 | . . . . . . 3 1 . 2 . . . 9 . 11 . 5 Combat Hostiles 8 | . . . . . . . . . . . . . 8 . . . . Follow-up Attacks 69 | . . . . . . 3 7 . 5 . . . 27 8 1 5 13 Damage Inflicted 17523 | . 192 1542 487 1283 2069 505 683 . 2181 . . 68 3666 1038 1227 767 1815 Guns 3486 | . 192 1330 487 285 1192 . . . . . . . . . . . . Cannons . | . . . . . . . . . . . . . . . . . . Explosions 3024 | . . 212 . 998 671 . . . 1143 . . . . . . . . Melee 11013 | . . . . . 206 505 683 . 1038 . . 68 3666 1038 1227 767 1815 Ramming . | . . . . . . . . . . . . . . . . . . Kinetic 3486 | . 192 1330 487 285 1192 . . . . . . . . . . . . Thermal 352 | . . . . . 352 . . . . . . . . . . . . Explosive 2672 | . . 212 . 998 319 . . . 1143 . . . . . . . . Electromagnetic . | . . . . . . . . . . . . . . . . . . Impact . | . . . . . . . . . . . . . . . . . . Slashing 7273 | . . . . . 206 505 683 . 919 . . . 2784 1038 898 51 189 Piercing 3740 | . . . . . . . . . 119 . . 68 882 . 329 716 1626 Highest Corruption 22 | . . 7 7 . 6 . 4 22 22 . . . 1 1 1 . 4 Average Corruption 7 | . . 3 7 . 3 . 3 14 22 . . . 1 1 1 . 2 Corruption Purged 7 | . . . . . 6 . . . . . . . . . 1 . . Corruption Blocked . | . . . . . . . . . . . . . . . . . . Effects 107 | . . 9 27 . 18 . 6 6 37 . . . 1 2 1 . . Message Errors 31 | . . 2 10 . 4 . 2 2 10 . . . . . 1 . . Matter Fused 27 | . . 2 5 . 2 . 1 2 12 . . . 1 2 . . . Heat Flow Errors 14 | . . . 4 . 3 . . . 7 . . . . . . . . Energy Discharges 10 | . . . 4 . 3 . 2 . 1 . . . . . . . . Parts Rejected 1 | . . . . . . . . 1 . . . . . . . . . Parts Fused 4 | . . 1 1 . . . . . 2 . . . . . . . . Data Loss (minor) 10 | . . 1 . . 5 . 1 . 3 . . . . . . . . Data Loss (major) 2 | . . . . . 1 . . . 1 . . . . . . . . Misfires 1 | . . . 1 . . . . . . . . . . . . . . Alerts 1 | . . . 1 . . . . . . . . . . . . . . Misdirections 1 | . . . . . . . . 1 . . . . . . . . . Weapon Failures 5 | . . 3 1 . . . . . 1 . . . . . . . . Overload Shots . | . . . . . . . . . . . . . . . . . . Overflow Damage 1517 | . . 8 . 36 142 128 43 . 135 . . . 310 24 577 13 101 Projectiles . | . . . . . . . . . . . . . . . . . . Explosions 246 | . . 8 . 36 142 . . . 60 . . . . . . . . Melee 1271 | . . . . . . 128 43 . 75 . . . 310 24 577 13 101 Knockbacks . | . . . . . . . . . . . . . . . . . . Impact . | . . . . . . . . . . . . . . . . . . Kinetic . | . . . . . . . . . . . . . . . . . . Secondary . | . . . . . . . . . . . . . . . . . . Self-Inflicted Damage 228 | . . . . 39 138 . 8 . 43 . . . . . . . . Shots 6 | . . . . 2 2 . 1 . 1 . . . . . . . . Rammed . | . . . . . . . . . . . . . . . . . . Targets Rammed . | . . . . . . . . . . . . . . . . . . Kicked . | . . . . . . . . . . . . . . . . . . Crushed . | . . . . . . . . . . . . . . . . . . Highest Temperature 270 | . . 173 270 80 244 . 16 . 266 37 7 60 110 . . 7 136 Average Temperature 39 | . . 32 55 19 44 . 6 . 67 9 4 20 32 . . 4 29 Received Heat Transfer 2256 | . . 342 36 426 93 54 54 . 111 . . . 151 198 9 186 596 Effects 1 | . . . . . . . . . 1 . . . . . . . . Energy Bleed 1 | . . . . . . . . . 1 . . . . . . . . Siege Activations . | . . . . . . . . . . . . . . . . . . Robots Corrupted . | . . . . . . . . . . . . . . . . . . Combat Hostiles . | . . . . . . . . . . . . . . . . . . Parts Fried 2 | . . . . . . . . . . . . . 2 . . . . Impact Corruptions . | . . . . . . . . . . . . . . . . . . Robots Melted . | . . . . . . . . . . . . . . . . . . Combat Hostiles . | . . . . . . . . . . . . . . . . . . Parts Melted 3 | . . . . . . . . . . . . . 3 . . . . Heat Transferred 300 | . . . . . 300 . . . . . . . . . . . . Parts Sabotaged . | . . . . . . . . . . . . . . . . . . Parts Stolen . | . . . . . . . . . . . . . . . . . . Parts Stripped . | . . . . . . . . . . . . . . . . . . Power Chain Reactions . | . . . . . . . . . . . . . . . . . . Alert | -11 -10 -9 -9 -8 -7 -6 -5 -5 -5 -4 -4 -4 -4 -4 -4 -4 -3 ------- Run | Yrd Mat Mat Min Mat Fac Fac Fac Was Fac Fac Was Fac Ext Cet Arc Hub Res Peak Influence 1627 | . 85 481 342 460 635 424 274 88 442 92 67 85 1627 925 623 811 546 Initial 910 | . . 35 187 133 209 310 133 58 61 70 32 46 . 910 317 217 394 Average 320 | . 64 243 273 299 247 315 147 64 171 40 42 54 694 803 540 404 410 Maximum Alert Level 5 | . . 2 1 2 2 2 1 . 2 . . . 5 3 2 3 2 Low Security (%) 38 | . 100 44 7 42 47 . 80 100 61 100 100 100 18 . . . . Level 1 35 | . . 37 92 18 38 75 20 . 34 . . . 13 . 12 69 60 Level 2 16 | . . 18 . 39 14 24 . . 3 . . . 31 . 87 12 39 Level 3 5 | . . . . . . . . . . . . . 7 100 . 18 . Level 4 2 | . . . . . . . . . . . . . 20 . . . . Level 5 . | . . . . . . . . . . . . . 7 . . . . High Security . | . . . . . . . . . . . . . . . . . . Max Security . | . . . . . . . . . . . . . . . . . . Squads Dispatched 20 | . . 2 . . 2 1 1 . 4 . . . 5 . . 3 2 Investigation 2 | . . 1 . . . . . . . . . . 1 . . . . Extermination 5 | . . . . . 2 . 1 . 1 . . . . . . . 1 Reinforcement 12 | . . 1 . . . 1 . . 3 . . . 3 . . 3 1 Assault 1 | . . . . . . . . . . . . . 1 . . . . Garrison . | . . . . . . . . . . . . . . . . . . Intercept . | . . . . . . . . . . . . . . . . . . Searches Triggered . | . . . . . . . . . . . . . . . . . . Construction Impeded 2 | . . . . . . . . . 1 . . . 1 . . . . Haulers Reinforced . | . . . . . . . . . . . . . . . . . . Active Scanning Responses . | . . . . . . . . . . . . . . . . . . Cargo Convoy Interrupts . | . . . . . . . . . . . . . . . . . . Stealth | -11 -10 -9 -9 -8 -7 -6 -5 -5 -5 -4 -4 -4 -4 -4 -4 -4 -3 --------- Run | Yrd Mat Mat Min Mat Fac Fac Fac Was Fac Fac Was Fac Ext Cet Arc Hub Res Distress Signals 13 | . . 4 . 1 1 . . . 4 . . . 2 1 . . . Communications Jammed 3 | . . . . . . . . . . . . . . . . . 3 Distress Signals 3 | . . . . . . . . . . . . . . . . . 3 Times Spotted 246 | . 6 32 16 16 28 6 5 4 30 4 6 2 51 5 8 11 16 Peak Tracking Total 8 | . 3 7 4 6 8 2 3 4 7 4 6 1 7 5 2 5 6 Tactical Retreats 17 | . 1 1 . . 4 . 1 . 3 2 . . 4 . . . 1 Traps | -11 -10 -9 -9 -8 -7 -6 -5 -5 -5 -4 -4 -4 -4 -4 -4 -4 -3 ------- Run | Yrd Mat Mat Min Mat Fac Fac Fac Was Fac Fac Was Fac Ext Cet Arc Hub Res Traps Triggered 11 | . . 1 . 1 4 1 1 . . 1 . . 1 . . . 1 Indirectly . | . . . . . . . . . . . . . . . . . . Trap Hack Attempts . | . . . . . . . . . . . . . . . . . . Triggered . | . . . . . . . . . . . . . . . . . . Disarmed . | . . . . . . . . . . . . . . . . . . Reprogrammed . | . . . . . . . . . . . . . . . . . . Reused . | . . . . . . . . . . . . . . . . . . Traps Extracted . | . . . . . . . . . . . . . . . . . . Installed . | . . . . . . . . . . . . . . . . . . Triggered . | . . . . . . . . . . . . . . . . . . Machines | -11 -10 -9 -9 -8 -7 -6 -5 -5 -5 -4 -4 -4 -4 -4 -4 -4 -3 ---------- Run | Yrd Mat Mat Min Mat Fac Fac Fac Was Fac Fac Was Fac Ext Cet Arc Hub Res Machines Disabled 20 | . . . . . 9 . 1 . 3 . . 1 1 . 3 1 1 Max in Single Turn 6 | . . . . . 6 . 1 . 2 . . 1 . . . . 1 Garrison Access 2 | . . . . . 1 1 . . . . . . . . . . . Machines Repaired . | . . . . . . . . . . . . . . . . . . Machines Dismantled . | . . . . . . . . . . . . . . . . . . Machines Sabotaged . | . . . . . . . . . . . . . . . . . . Overloaded Fab Kills . | . . . . . . . . . . . . . . . . . . Hacking | -11 -10 -9 -9 -8 -7 -6 -5 -5 -5 -4 -4 -4 -4 -4 -4 -4 -3 --------- Run | Yrd Mat Mat Min Mat Fac Fac Fac Was Fac Fac Was Fac Ext Cet Arc Hub Res Machines Accessed 39 | . . 4 . . 3 4 4 . 4 4 . 1 5 . . 6 4 Terminals 26 | . . 4 . . 1 2 . . 3 1 . 1 5 . . 6 3 Fabricators 6 | . . . . . 1 1 2 . 1 1 . . . . . . . Repair Stations 3 | . . . . . . . 1 . . 1 . . . . . . 1 Recycling Units . | . . . . . . . . . . . . . . . . . . Scanalyzers 1 | . . . . . . . 1 . . . . . . . . . . Garrison Access 3 | . . . . . 1 1 . . . 1 . . . . . . . Total Hacks 97 | . . 18 . . 6 9 12 . 6 7 . 1 9 . . 20 9 Successful 38 | . . 6 . . 2 6 7 . 2 2 . . 5 . . 5 3 Failed 59 | . . 12 . . 4 3 5 . 4 5 . 1 4 . . 15 6 Catastrophic 18 | . . 6 . . . . . . 3 3 . 1 . . . 2 3 Database Lockouts . | . . . . . . . . . . . . . . . . . . Manual 41 | . . 13 . . 3 1 4 . 6 2 . 1 1 1 . 6 3 Terminals 69 | . . 18 . . 3 6 . . 5 4 . 1 9 . . 20 3 Fabricators 14 | . . . . . 2 2 8 . 1 1 . . . . . . . Repair Stations 10 | . . . . . . . 3 . . 1 . . . . . . 6 Recycling Units . | . . . . . . . . . . . . . . . . . . Scanalyzers 1 | . . . . . . . 1 . . . . . . . . . . Garrison Access 3 | . . . . . 1 1 . . . 1 . . . . . . . Terminal Hacks 17 | . . 4 . . . 3 . . 1 1 . . 4 . . 4 . Open Door 3 | . . . . . . . . . . . . . 3 . . . . Level Access Points 1 | . . . . . . 1 . . . . . . . . . . . Alert Level 1 | . . . . . . 1 . . . . . . . . . . . Unreport Threat 2 | . . . . . . . . . 1 1 . . . . . . . Locate Traps 5 | . . 2 . . . 1 . . . . . . 1 . . 1 . Recall Reinforcements 1 | . . . . . . . . . . . . . . . . 1 . Zone Layout 4 | . . 2 . . . . . . . . . . . . . 2 . Fabricator Hacks 4 | . . . . . . 1 2 . 1 . . . . . . . . Network Status 2 | . . . . . . . 1 . 1 . . . . . . . . Build 2 | . . . . . . 1 1 . . . . . . . . . . Repair Station Hacks 4 | . . . . . . . 1 . . . . . . . . . 3 Scan Component 3 | . . . . . . . 1 . . . . . . . . . 2 Repair 1 | . . . . . . . . . . . . . . . . . 1 Recycling Unit Hacks . | . . . . . . . . . . . . . . . . . . Scanalyzer 1 | . . . . . . . 1 . . . . . . . . . . Insert Component 1 | . . . . . . . 1 . . . . . . . . . . Garrison Access Hacks 2 | . . . . . 1 1 . . . . . . . . . . . Seal Access 2 | . . . . . 1 1 . . . . . . . . . . . Unauthorized Hacks 10 | . . 2 . . 1 1 3 . . 1 . . 1 . . 1 . Terminals 7 | . . 2 . . 1 1 . . . 1 . . 1 . . 1 . Botnet 7 | . . 2 . . 1 1 . . . 1 . . 1 . . 1 . Fabricators 3 | . . . . . . . 3 . . . . . . . . . . Report 2 | . . . . . . . 2 . . . . . . . . . . Prioritize 1 | . . . . . . . 1 . . . . . . . . . . Repair Stations . | . . . . . . . . . . . . . . . . . . Recycling Units . | . . . . . . . . . . . . . . . . . . Scanalyzers . | . . . . . . . . . . . . . . . . . . Garrison Access . | . . . . . . . . . . . . . . . . . . Data Cores Recovered 3 | . . 1 . . . . . . 1 . . . . . . 1 . Used . | . . . . . . . . . . . . . . . . . . Hacking Detections 32 | . . 4 . . 2 3 2 . 3 4 . 1 3 . . 6 4 Full Trace Events 2 | . . 1 . . . . . . . . . . 1 . . . . Feedback Events . | . . . . . . . . . . . . . . . . . . Feedback Blocked . | . . . . . . . . . . . . . . . . . . Robot Schematics Acquired . | . . . . . . . . . . . . . . . . . . Robots Built . | . . . . . . . . . . . . . . . . . . Authchips . | . . . . . . . . . . . . . . . . . . Time . | . . . . . . . . . . . . . . . . . . Total Robot Build Rating . | . . . . . . . . . . . . . . . . . . Part Schematics Acquired . | . . . . . . . . . . . . . . . . . . Parts Built 3 | . . . . . . 2 1 . . . . . . . . . . Authchips . | . . . . . . . . . . . . . . . . . . Time 164 | . . . . . . 47 117 . . . . . . . . . . Total Part Build Rating 17 | . . . . . . 10 7 . . . . . . . . . . Parts Repaired 1 | . . . . . . . . . . . . . . . . . 1 Time 56 | . . . . . . . . . . . . . . . . . 56 Parts Recycled . | . . . . . . . . . . . . . . . . . . Recycled Matter . | . . . . . . . . . . . . . . . . . . Retrieved Matter . | . . . . . . . . . . . . . . . . . . Retrieved Components . | . . . . . . . . . . . . . . . . . . Parts Scanalyzed . | . . . . . . . . . . . . . . . . . . Part Schematics Acquired . | . . . . . . . . . . . . . . . . . . Parts Damaged . | . . . . . . . . . . . . . . . . . . Bothacking | -11 -10 -9 -9 -8 -7 -6 -5 -5 -5 -4 -4 -4 -4 -4 -4 -4 -3 ------------ Run | Yrd Mat Mat Min Mat Fac Fac Fac Was Fac Fac Was Fac Ext Cet Arc Hub Res Used RIF Installer . | . . . . . . . . . . . . . . . . . . Robots Hacked . | . . . . . . . . . . . . . . . . . . Non-combat . | . . . . . . . . . . . . . . . . . . Combat . | . . . . . . . . . . . . . . . . . . Robot Hacks Applied . | . . . . . . . . . . . . . . . . . . Relay Couplers Released . | . . . . . . . . . . . . . . . . . . Fabnet Peak Effective % . | . . . . . . . . . . . . . . . . . . Robots Rewired 22 | . . . . . . . . . . . . . 22 . . . . Allies Hacked . | . . . . . . . . . . . . . . . . . . Hacks Repelled . | . . . . . . . . . . . . . . . . . . Allies | -11 -10 -9 -9 -8 -7 -6 -5 -5 -5 -4 -4 -4 -4 -4 -4 -4 -3 -------- Run | Yrd Mat Mat Min Mat Fac Fac Fac Was Fac Fac Was Fac Ext Cet Arc Hub Res Total Allies 32 | . . . . . . . . . . . . . 27 5 . . . Largest Group 13 | . . . . . . . . . . . . . 13 9 5 5 . Highest-Rated Group 667 | . . . . . . . . . . . . . 667 499 480 480 . Highest-Rated Ally 159 | . . . . . . . . . . . . . 159 156 96 96 . Total Orders . | . . . . . . . . . . . . . . . . . . Ally Attacks 321 | . . . . . . . . . . . . . 201 29 44 47 . Total Damage 10739 | . . . . . . . . . . . . . 6414 893 1446 1986 . Kills 53 | . . . . . . . . . . . . . 38 3 4 8 . Allies Corrupted . | . . . . . . . . . . . . . . . . . . Allies Melted 1 | . . . . . . . . . . . . . . . . 1 . Intel | -11 -10 -9 -9 -8 -7 -6 -5 -5 -5 -4 -4 -4 -4 -4 -4 -4 -3 ------- Run | Yrd Mat Mat Min Mat Fac Fac Fac Was Fac Fac Was Fac Ext Cet Arc Hub Res Robot Analysis Total . | . . . . . . . . . . . . . . . . . . Derelict Logs Recovered 1 | . . . 1 . . . . . . . . . . . . . . Drone Launches . | . . . . . . . . . . . . . . . . . . Drone Recoveries . | . . . . . . . . . . . . . . . . . . Exploration | -11 -10 -9 -9 -8 -7 -6 -5 -5 -5 -4 -4 -4 -4 -4 -4 -4 -3 ------------- Run | Yrd Mat Mat Min Mat Fac Fac Fac Was Fac Fac Was Fac Ext Cet Arc Hub Res Turns Passed 8873 | . 211 562 782 380 1061 658 600 136 839 246 103 579 1137 388 186 269 736 Spaces Moved 6518 | 1 125 251 517 209 608 522 430 151 792 342 144 274 943 163 137 387 522 Core . | . . . . . . . . . . . . . . . . . . Treads 13 | . . 13 . . . . . . . . . . . . . . . Legs 1194 | 1 125 50 517 209 164 . . . . . . . . 78 50 . . Wheels 1375 | . . 188 . . 444 522 218 . . . . . . . . . 3 Hover 3936 | . . . . . . . 212 151 792 342 144 274 943 85 87 387 519 Flight . | . . . . . . . . . . . . . . . . . . Fastest Speed 36 | 120 120 86 120 120 93 93 59 59 53 43 47 45 37 37 36 36 37 Average Speed 71 | 120 120 108 120 121 102 94 81 59 55 46 47 45 40 97 86 36 44 Slowest Speed 190 | 120 120 190 120 190 130 100 125 59 59 47 47 47 46 190 190 43 181 Overloaded Moves . | . . . . . . . . . . . . . . . . . . Propulsion Burnouts . | . . . . . . . . . . . . . . . . . . Robots Hopped . | . . . . . . . . . . . . . . . . . . Cave-ins Triggered . | . . . . . . . . . . . . . . . . . . Exploration Rate (%) 41 | 2 28 35 92 29 22 18 11 97 32 10 81 7 88 55 84 36 16 Regions Visited 17 Branch Regions 5 Pre-discovered Areas 1 | . . . 1 . . . . . . . . . . . . . . Known Exits Taken 1 | . . . . . . 1 . . . . . . . . . . . Unknown Exits Taken 12 | 1 1 1 1 1 1 . . . 1 . . 1 1 1 1 1 . Scrap Searched 2 | . . . 2 . . . . . . . . . . . . . . Spaces Dug 143 | . . . . . 6 . 76 . 34 1 . 1 2 . . 3 20 Terrain Destroyed 342 | . . 11 . 56 122 . 76 . 48 1 . 1 2 . . 3 22 Melee 51 | . . . . . 6 . 4 . 17 1 . 1 2 . . 3 17 Projectile 5 | . . . . . . . . . . . . . . . . . 5 AOE 286 | . . 11 . 56 116 . 72 . 31 . . . . . . . . Terrain Rammed . | . . . . . . . . . . . . . . . . . . Walls Destroyed . | . . . . . . . . . . . . . . . . . . Machines Disabled . | . . . . . . . . . . . . . . . . . . Actions | -11 -10 -9 -9 -8 -7 -6 -5 -5 -5 -4 -4 -4 -4 -4 -4 -4 -3 --------- Run | Yrd Mat Mat Min Mat Fac Fac Fac Was Fac Fac Was Fac Ext Cet Arc Hub Res Total 9986 | . 155 415 631 297 925 687 643 198 1127 425 178 722 1622 372 190 481 918 Wait 2259 | . 5 48 61 38 186 100 150 40 203 76 31 435 336 174 15 60 301 Move 6503 | . 124 250 516 208 607 521 430 150 791 342 143 273 942 162 136 386 522 Hop . | . . . . . . . . . . . . . . . . . . Pick Up 100 | . 3 8 4 2 14 21 7 3 19 . 1 2 5 2 6 2 1 Fast Attach 80 | . 1 7 . 6 13 4 2 1 12 . 1 2 6 8 5 . 12 Attach 53 | . . 8 2 4 6 3 6 . 5 2 1 . 2 3 3 2 6 Detach 22 | . . 3 . . 5 2 1 . 3 . . 1 . 1 2 . 4 Swap 112 | . 1 12 8 13 17 6 8 1 14 3 . 2 13 1 2 4 7 Drop 154 | . 3 11 8 4 16 21 11 3 33 . 1 4 18 4 10 6 1 Fire 202 | . 18 68 32 22 48 . 4 . 5 . . . . . . . 5 Melee 269 | . . . . . 13 9 24 . 42 2 . 3 68 17 11 21 59 Ram . | . . . . . . . . . . . . . . . . . . Kick . | . . . . . . . . . . . . . . . . . . Crush . | . . . . . . . . . . . . . . . . . . Escape Stasis 10 | . . . . . . . . . . . . . 10 . . . . Rewire 222 | . . . . . . . . . . . . . 222 . . . . Trap . | . . . . . . . . . . . . . . . . . . Miscellaneous . | . . . . . . . . . . . . . . . . . . Route ------- -11/Scrapyard -10/Materials -9/Materials -9/Mines (discovered 2 exits: [*Mat x2]) -8/Materials -7/Factory -6/Factory (discovered 4 exits: *Fac x4) -5/Factory -5/Waste -5/Factory -4/Factory -4/Waste -4/Factory -4/Extension (discovered 2 exits: *Res / *Cet) -4/Cetus -4/Archives (discovered 3 exits: *Res / *Hub x2) -4/Hub_04(d) (discovered 2 exits: *Res x2) -3/Research History --------- Turn | Location | Event 1 | -11/Scrapyard | Discovered new exit (range 0) 1 | -11/Scrapyard | Entered Materials 205 | -10/Materials | Discovered new exit (range 3) 212 | -10/Materials | Entered another Materials area 212 | -9/Materials | Evolved 2 slots: Propulsion x1, Weapon x1 513 | -9/Materials | Build established: Skirmisher 617 | -9/Materials | Lost 5 parts (1p3n1w) 678 | -9/Materials | Discovered new exit (range 16) 774 | -9/Materials | Entered Mines 778 | -9/Mines | Met a Derelict bent on vengeance 962 | -9/Mines | Discovered new exit (range 6) 1104 | -9/Mines | Build established: Scavenger-Gunner 1335 | -9/Mines | Core integrity fell below 50% 1446 | -9/Mines | Received a Rocket Launcher from a helpful Derelict 1471 | -9/Mines | Learned location of Zion (-6) 1544 | -9/Mines | Discovered new exit (range 5) 1556 | -9/Mines | Entered Materials 1556 | -8/Materials | Evolved 2 slots: Propulsion x2 1821 | -8/Materials | Lost 7 parts (1p4n1u1w) 1862 | -8/Materials | Discovered new exit (range 8) 1933 | -8/Materials | Build established: Scavenger-Skirmisher 1936 | -8/Materials | Entered Factory 1936 | -7/Factory | Evolved 2 slots: Utility x2 2109 | -7/Factory | Lost 3 parts (1n1u1w) 2871 | -7/Factory | Destroyed 7 combat bots 2880 | -7/Factory | Lost 5 parts (1n2u2w) 2897 | -7/Factory | Discovered new exit (range 16) 2997 | -7/Factory | Entered another Factory area 2997 | -6/Factory | Evolved 2 slots: Utility x2 3273 | -6/Factory | Build established: Gladiator 3374 | -6/Factory | Fabricated Force Field (x2) 3583 | -6/Factory | Identified exit to Factory 3655 | -6/Factory | Entered another Factory area 3655 | -5/Factory | Evolved 2 slots: Power x1, Propulsion x1 4177 | -5/Factory | Fabricated Micro-nuke Launcher (x1) 4255 | -5/Factory | Sucked down chute 4255 | -5/Factory | Entered Waste 4260 | -5/Waste | Spotted C-40 Crusher 4270 | -5/Waste | EMP discharged 4270 | -5/Waste | System corruption reached 10% 4280 | -5/Waste | Spotted C-40 Crusher 4342 | -5/Waste | Spotted C-40 Crusher 4351 | -5/Waste | Spotted C-40 Crusher 4363 | -5/Waste | Spotted C-40 Crusher 4370 | -5/Waste | EMP discharged 4372 | -5/Waste | Spotted C-40 Crusher 4385 | -5/Waste | Discovered new exit (range 10) 4391 | -5/Waste | Entered Factory 5198 | -5/Factory | Discovered new exit (range 13) 5230 | -5/Factory | Entered another Factory area 5230 | -4/Factory | Evolved 2 slots: Propulsion x1, Utility x1 5476 | -4/Factory | Sucked down chute 5476 | -4/Factory | Entered Waste 5483 | -4/Waste | Found Prototype Device 5498 | -4/Waste | Spotted C-40 Crusher 5542 | -4/Waste | Spotted C-40 Crusher 5543 | -4/Waste | Spotted C-40 Crusher 5553 | -4/Waste | Crushed by Compactor (1 part destroyed, 1 dropped) 5557 | -4/Waste | Spotted C-40 Crusher 5558 | -4/Waste | Spotted C-40 Crusher 5563 | -4/Waste | Spotted C-40 Crusher 5568 | -4/Waste | Discovered new exit (range 14) 5579 | -4/Waste | Entered Factory 5579 | -4/Factory | Identified Exp. Phase Shifter 6148 | -4/Factory | Discovered new exit (range 21) 6158 | -4/Factory | Entered Extension 6355 | -4/Extension | Rescued a captive Derelict 6376 | -4/Extension | Rescued A7 6403 | -4/Extension | Rescued a captive Derelict 6403 | -4/Extension | Rescued a captive Derelict 6531 | -4/Extension | Lost 3 allies 6543 | -4/Extension | Build established: Commander-Gladiator 6770 | -4/Extension | Spotted B-86 Titan 6815 | -4/Extension | Spotted B-86 Titan 6838 | -4/Extension | Destroyed B-86 Titan 6852 | -4/Extension | Allies destroyed B-86 Titan 6908 | -4/Extension | First assault squad dispatched 7062 | -4/Extension | Rescued a captive Derelict 7071 | -4/Extension | Lost 7 allies 7215 | -4/Extension | Lost 3 allies 7249 | -4/Extension | Discovered new exit (range 10) 7249 | -4/Extension | Discovered new exit (range 6) 7295 | -4/Extension | Entered Cetus 7295 | -4/Cetus | Accompanied by 9 allies (A7) 7300 | -4/Cetus | Acquired a Cetus Manufacturing Module code from A7 7300 | -4/Cetus | Spotted Cetus Guard 7300 | -4/Cetus | Spotted Cetus Guard 7300 | -4/Cetus | Spotted Cetus Guard 7300 | -4/Cetus | Spotted Cetus Guard 7324 | -4/Cetus | Allies destroyed A7 7327 | -4/Cetus | Allies destroyed Cetus Guard 7338 | -4/Cetus | Destroyed Cetus Guard 7363 | -4/Cetus | Lost 9 allies 7368 | -4/Cetus | Destroyed Cetus Guard 7375 | -4/Cetus | Destroyed Cetus Guard 7378 | -4/Cetus | Extracted ID and sensor layout for unrecognized location from A7's data core 7404 | -4/Cetus | Lost 8 parts (1p4n3u) 7492 | -4/Cetus | Started Cetus Manufacturing Module 7499 | -4/Cetus | Discovered new exit (range 21) 7517 | -4/Cetus | Manufactured an Enhanced Grunt 7542 | -4/Cetus | Manufactured an Enhanced Grunt 7567 | -4/Cetus | Manufactured an Enhanced Grunt 7592 | -4/Cetus | Manufactured an Enhanced Grunt 7617 | -4/Cetus | Manufactured an Enhanced Grunt 7683 | -4/Cetus | Entered Archives 7683 | -4/Archives | Accompanied by 5 allies 7710 | -4/Archives | Discovered new exit (range 18) 7719 | -4/Archives | Build established: Scavenger-Gladiator 7719 | -4/Archives | Discovered new exit (range 22) 7838 | -4/Archives | Discovered new exit (range 22) 7869 | -4/Archives | Entered Hub_04(d) 7869 | -4/Hub_04(d) | Accompanied by 5 allies 8079 | -4/Hub_04(d) | Discovered new exit (range 6) 8080 | -4/Hub_04(d) | Discovered new exit (range 12) 8138 | -4/Hub_04(d) | Entered Research 8138 | -3/Research | Evolved 2 slots: Power x1, Propulsion x1 8155 | -3/Research | Lost 5 allies 8167 | -3/Research | Lost 3 parts (1p1n1u) 8673 | -3/Research | Repaired Phasing Sabre 8874 | -3/Research | Self-destructed Last Messages --------------- 08868_ U-05 Engineer lays Concrete. 08868_ K-01 Serf collects debris. 08868_ U-05 Engineer lays Concrete. 08870_ K-01 Serf collects debris. 08870_ K-01 Serf destroyed. 08870_ K-01 Serf collects debris. 08871_ Extracted 5 matter. 08871_ U-05 Engineer lays Concrete. 08871_ U-05 Engineer builds a Door. 08871_ K-01 Serf collects debris. 08872_ Extracted 10 matter. 08872_ U-05 Engineer destroyed. 08872_ U-05 Engineer lays Concrete. 08872_ Lgt. Antimatter Reactor destroyed. 08872_ U-05 Engineer builds a Wall. 08873_ U-05 Engineer lays Concrete. 08873_ K-01 Serf collects debris. 08873_ P-80 Master resets K-01 Serf, system corruption cleaned. 08874_ K-01 Serf collects debris. Map ----- +----------------------------------------------------+ | ?????????????????????????????????????????????????? | | ?????????????????????????????????????????????????? | | ?????????????????????????????????????????????????? | | ?????????????????????????????????????????????????? | | ?????????????????????????????????????????????????? | | ?????????????????????????????????????????????????? | | ?????????????????????????????????????????????????? | | ?????????????????????????????????????????????????? | | ?????????????????????????????????????????????????? | | ??????????????????????????####???????????????????? | | ????????????????????H????? #???????????????????? | | ?????????????????????????? ???????????????????? | | ?????????????????????????? #???????????????????? | | ?????????????????????????? #???????????????????? | | ?????????????????????????? #???????????????????? | | ?????????????????????????? #???????????????????? | | ?????????????????????????? #???????????????????? | | ?????????????????????????? #???????????????????? | | ?????????????????????????? #???????????????????? | | ?????????????????????????? ????????????????????? | | ??????????????????????#####+#####????????????????? | | ??????????????????????# A #????????????????? | | ??????????????????????# %A ! #????????????????? | | ??????????????????????#"""k #????????????????? | | ??????????????????????#""=pp #????????????????? | | ??????????????????????# !@**| #????????????????? | | ??????????????????????#!k!===k #????????????????? | | ??????????????????????# k%!uu #????????????????? | | ??????????????????????# %g=u #????????????????? | | ??????????????????????####u######????????????????? | | ????????????????????????##u##????????????????????? | | ?????????????????????????#%#?????????????????????? | | ????????????????##########=##????????????????????? | | ????????????????# "% #????????????????????? | | ????????????????# #????????????????????? | | ????????????????# #????????????????????? | | ????????????????+ ####?????????????????? | | ????????????????# ###########?????????????????? | | ????????????????# # ##?????????????????? | | ????????????????# # #??????????????????? | | ????????????????# # #??????????????????? | | ????????????????# # #??????????????????? | | ????????????????# # """#??????????????????? | | ????????????????# + """#??????????????????? | | ????????????????# # """#??????????????????? | | ??????########### # #??????????????????? | | ??????# # # #??????????????????? | | ??????# # ##########??????????????????? | | ??????# [ # #???????????????????????????? | | ??????# " " # #???????????????????????????? | +----------------------------------------------------+ Best States ------------- Heat Dissipation 93 Energy Generation 57 Energy Capacity 805 Matter Stores 300 Matter Capacity 300 Sight Range 22 Robot Scan Range 16 Terrain Scan Density 10 Jamming Range 16 Cloak Strength 4 Additional Mass Support 12 Armor Coverage 450 Melee Speed Boost 20 Phase Shifting 15 Evasion (%) 83 Melee Accuracy 14 Recoil Reduction 1 Force Boost 20 Defensive Hacking 10 Item Schematics ----------------- None Robot Schematics ------------------ None Fabricated ------------ Force Field | x2 | -6/Factory | Preloaded Micro-nuke Launcher | x1 | -5/Factory | Preloaded Alien Tech Used ----------------- None Achievements -------------- None Challenges ------------ None Game ------ Seed BattleMachineLink Manual? 0 Play Time 01:39:14 Cumulative 241.6 hours Start 2024.04.16 @ 18:56:57 End 2024.04.17 @ 13:50:05 Sessions 4 Manual Loads 0 Difficulty Rogue Special Mode None Game No. 149 Rogue 149 Adventurer 0 Explorer 0 Win Type - Total 2 Types 2/0/0/0/0/0/0/0/0 Lore% 50 Gallery% 70 Achievement% 57 Wizard Run 0 Options --------- Layout 1 ASCII 0 Keyboard 1 Movement Numpad Keybinds 0 Fullscreen 1 Font 32/SmallcapsGlow Map View 50x35 Zoom Use 0% Tactical HUD 1 Map Filters NONE Filters NONE Steam 1 RUN: a35fff15-a410-4330-88b2-0a72f0e839bd